[Event "Titled Tuesday Blitz March 28 Early 2023"]
[White "Rendle, Thomas E"]
[Black "BenchGM"]
[WhiteFideId "408760"]
[WhiteElo "2428"]
[BlackElo "2368"]
[Result "1-0"]
[Round "01"]
[TimeControl "180+2"]
[Date "2023.03.28"]
[WhiteClock "0:00:16"]
[BlackClock "0:00:07"]

1. Nf3 {[%clk 0:02:59]}  f5 {[%clk 0:02:56]} 2. b3 {[%clk 0:02:57]}  Nf6 {[%clk 0:02:56]} 3. Bb2 {[%clk 0:02:57]}  g6 {[%clk 0:02:56]} 4. Bxf6 {[%clk 0:02:54]}  exf6 {[%clk 0:02:57]} 5. g3 {[%clk 0:02:48]}  d5 {[%clk 0:02:56]} 6. Bg2 {[%clk 0:02:48]}  Bd6 {[%clk 0:02:54]} 7. O-O {[%clk 0:02:46]}  O-O {[%clk 0:02:54]} 8. e3 {[%clk 0:02:45]}  c6 {[%clk 0:02:54]} 9. c4 {[%clk 0:02:44]}  Be6 {[%clk 0:02:52]} 10. Qc2 {[%clk 0:02:39]}  Nd7 {[%clk 0:02:49]} 11. d4 {[%clk 0:02:35]}  Qe7 {[%clk 0:02:44]} 12. Qd3 {[%clk 0:02:30]}  Bf7 {[%clk 0:02:36]} 13. Nc3 {[%clk 0:02:29]}  dxc4 {[%clk 0:02:36]} 14. bxc4 {[%clk 0:02:29]}  Ba3 {[%clk 0:02:31]} 15. Rab1 {[%clk 0:02:11]}  Bb4 {[%clk 0:02:23]} 16. c5 {[%clk 0:02:06]}  Bxc3 {[%clk 0:02:19]} 17. Qxc3 {[%clk 0:02:07]}  Rab8 {[%clk 0:02:10]} 18. a4 {[%clk 0:02:01]}  Bd5 {[%clk 0:02:02]} 19. a5 {[%clk 0:02:00]}  a6 {[%clk 0:02:01]} 20. Rb4 {[%clk 0:01:58]}  g5 {[%clk 0:01:58]} 21. Rfb1 {[%clk 0:01:55]}  f4 {[%clk 0:01:42]} 22. exf4 {[%clk 0:01:45]}  gxf4 {[%clk 0:01:36]} 23. Rxb7 {[%clk 0:01:45]}  fxg3 {[%clk 0:01:25]} 24. hxg3 {[%clk 0:01:44]}  Qe4 {[%clk 0:01:16]} 25. Rxb8 {[%clk 0:01:20]}  Rxb8 {[%clk 0:01:17]} 26. Re1 {[%clk 0:01:15]}  Qg4 {[%clk 0:00:54]} 27. Nh2 {[%clk 0:01:06]}  Qf5 {[%clk 0:00:48]} 28. Bxd5+ {[%clk 0:01:04]}  Qxd5 {[%clk 0:00:49]} 29. Ng4 {[%clk 0:00:59]}  Rb3 {[%clk 0:00:36]} 30. Qc2 {[%clk 0:00:55]}  Ra3 {[%clk 0:00:20]} 31. Qb2 {[%clk 0:00:42]}  Rb3 {[%clk 0:00:19]} 32. Qe2 {[%clk 0:00:36]}  Rf3 {[%clk 0:00:12]} 33. Qxa6 {[%clk 0:00:23]}  Qxd4 {[%clk 0:00:10]} 34. Ne3 {[%clk 0:00:18]}  Qe5 {[%clk 0:00:07]} 35. Qxc6 {[%clk 0:00:16]} 1-0


[Site "https://www.chess.com"]

[Event "Titled Tuesday Blitz March 28 Early 2023"]
[White "Zheenbekov, Nurgazy"]
[Black "Subelj, Jan"]
[WhiteFideId "13800485"]
[BlackFideId "14618583"]
[WhiteElo "1975"]
[BlackElo "2474"]
[Result "0-1"]
[Round "01"]
[TimeControl "180+2"]
[Date "2023.03.28"]
[WhiteClock "0:00:12"]
[BlackClock "0:00:38"]

1. e4 {[%clk 0:02:58]}  Nc6 {[%clk 0:03:00]} 2. Nf3 {[%clk 0:02:57]}  e6 {[%clk 0:02:58]} 3. d4 {[%clk 0:02:57]}  d5 {[%clk 0:02:58]} 4. Nc3 {[%clk 0:02:52]}  Bb4 {[%clk 0:02:56]} 5. e5 {[%clk 0:02:52]}  f6 {[%clk 0:02:55]} 6. exf6 {[%clk 0:02:46]}  Nxf6 {[%clk 0:02:56]} 7. Bb5 {[%clk 0:02:46]}  O-O {[%clk 0:02:54]} 8. Bxc6 {[%clk 0:02:43]}  bxc6 {[%clk 0:02:54]} 9. O-O {[%clk 0:02:43]}  c5 {[%clk 0:02:54]} 10. a3 {[%clk 0:02:36]}  cxd4 {[%clk 0:02:52]} 11. axb4 {[%clk 0:02:29]}  dxc3 {[%clk 0:02:53]} 12. bxc3 {[%clk 0:02:29]}  Qd6 {[%clk 0:02:50]} 13. Bg5 {[%clk 0:02:24]}  Ne4 {[%clk 0:02:46]} 14. Bh4 {[%clk 0:02:17]}  Nxc3 {[%clk 0:02:42]} 15. Qd3 {[%clk 0:02:17]}  Ne4 {[%clk 0:02:41]} 16. Rfe1 {[%clk 0:02:11]}  a5 {[%clk 0:02:41]} 17. bxa5 {[%clk 0:02:09]}  Ba6 {[%clk 0:02:39]} 18. Qe3 {[%clk 0:02:04]}  c5 {[%clk 0:02:34]} 19. Bg3 {[%clk 0:01:56]}  Nxg3 {[%clk 0:02:28]} 20. hxg3 {[%clk 0:01:56]}  Rf6 {[%clk 0:02:29]} 21. Ne5 {[%clk 0:01:52]}  Raf8 {[%clk 0:02:27]} 22. f4 {[%clk 0:01:52]}  d4 {[%clk 0:02:19]} 23. Qe4 {[%clk 0:01:50]}  Rb8 {[%clk 0:02:13]} 24. Reb1 {[%clk 0:01:49]}  Rff8 {[%clk 0:02:12]} 25. Rb6 {[%clk 0:01:43]}  Rxb6 {[%clk 0:02:09]} 26. axb6 {[%clk 0:01:43]}  Qxb6 {[%clk 0:01:57]} 27. Nd7 {[%clk 0:01:43]}  Bb7 {[%clk 0:01:58]} 28. Qe2 {[%clk 0:01:33]}  Qb2 {[%clk 0:01:56]} 29. Qxe6+ {[%clk 0:01:32]}  Kh8 {[%clk 0:01:56]} 30. Nxf8 {[%clk 0:01:20]}  Qxa1+ {[%clk 0:01:55]} 31. Kh2 {[%clk 0:01:20]}  Qf1 {[%clk 0:01:48]} 32. Qh3 {[%clk 0:01:20]}  Kg8 {[%clk 0:01:46]} 33. Nd7 {[%clk 0:01:14]}  Qc4 {[%clk 0:01:32]} 34. Qf5 {[%clk 0:01:04]}  Qf7 {[%clk 0:01:15]} 35. Qxf7+ {[%clk 0:00:58]}  Kxf7 {[%clk 0:01:16]} 36. Nxc5 {[%clk 0:00:59]}  Bd5 {[%clk 0:01:12]} 37. Kg1 {[%clk 0:00:58]}  Ke7 {[%clk 0:01:12]} 38. Kf2 {[%clk 0:00:57]}  Kd6 {[%clk 0:01:12]} 39. Nd3 {[%clk 0:00:57]}  Be4 {[%clk 0:01:11]} 40. g4 {[%clk 0:00:54]}  Kd5 {[%clk 0:01:10]} 41. Ke2 {[%clk 0:00:41]}  Bxg2 {[%clk 0:01:08]} 42. Nf2 {[%clk 0:00:33]}  Kc4 {[%clk 0:01:03]} 43. Kd2 {[%clk 0:00:33]}  h6 {[%clk 0:01:04]} 44. g5 {[%clk 0:00:33]}  h5 {[%clk 0:01:03]} 45. f5 {[%clk 0:00:33]}  Kd5 {[%clk 0:01:02]} 46. Nd3 {[%clk 0:00:31]}  Be4 {[%clk 0:00:59]} 47. f6 {[%clk 0:00:25]}  gxf6 {[%clk 0:00:41]} 48. gxf6 {[%clk 0:00:25]}  Kd6 {[%clk 0:00:41]} 49. Nf4 {[%clk 0:00:23]}  h4 {[%clk 0:00:39]} 50. Ke2 {[%clk 0:00:13]}  Bxc2 {[%clk 0:00:38]} 51. Kf3 {[%clk 0:00:12]}  Bf5 {[%clk 0:00:38]} 0-1


[Site "https://www.chess.com"]

[Event "Titled Tuesday Blitz March 28 Early 2023"]
[White "Darini, Pouria"]
[Black "Shukhman, Anna"]
[WhiteFideId "12502200"]
[BlackFideId "54180058"]
[WhiteElo "2482"]
[BlackElo "2125"]
[Result "1-0"]
[Round "01"]
[TimeControl "180+2"]
[Date "2023.03.28"]
[WhiteClock "0:00:09"]
[BlackClock "0:00:20"]

1. d4 {[%clk 0:02:58]}  Nf6 {[%clk 0:02:57]} 2. Bg5 {[%clk 0:02:59]}  d5 {[%clk 0:02:57]} 3. Be3 {[%clk 0:02:58]}  g6 {[%clk 0:02:55]} 4. Nf3 {[%clk 0:02:56]}  Bg7 {[%clk 0:02:55]} 5. Bf4 {[%clk 0:02:52]}  O-O {[%clk 0:02:55]} 6. Nbd2 {[%clk 0:02:52]}  c5 {[%clk 0:02:54]} 7. e3 {[%clk 0:02:52]}  Nc6 {[%clk 0:02:54]} 8. c3 {[%clk 0:02:52]}  Re8 {[%clk 0:02:40]} 9. Be2 {[%clk 0:02:50]}  Ne4 {[%clk 0:02:38]} 10. O-O {[%clk 0:02:41]}  e5 {[%clk 0:02:27]} 11. dxe5 {[%clk 0:02:41]}  Nxd2 {[%clk 0:02:08]} 12. Qxd2 {[%clk 0:02:42]}  Nxe5 {[%clk 0:02:08]} 13. Rad1 {[%clk 0:02:33]}  Nxf3+ {[%clk 0:01:31]} 14. Bxf3 {[%clk 0:02:33]}  g5 {[%clk 0:01:19]} 15. Bg3 {[%clk 0:02:31]}  d4 {[%clk 0:01:19]} 16. exd4 {[%clk 0:02:25]}  g4 {[%clk 0:01:18]} 17. Be2 {[%clk 0:02:19]}  cxd4 {[%clk 0:01:17]} 18. cxd4 {[%clk 0:02:19]}  Bf5 {[%clk 0:01:08]} 19. Bd3 {[%clk 0:02:01]}  Be6 {[%clk 0:01:04]} 20. Bb5 {[%clk 0:01:45]}  Bd7 {[%clk 0:00:57]} 21. Bxd7 {[%clk 0:01:33]}  Qxd7 {[%clk 0:00:58]} 22. d5 {[%clk 0:01:32]}  Re4 {[%clk 0:00:42]} 23. b3 {[%clk 0:01:04]}  f5 {[%clk 0:00:30]} 24. Rfe1 {[%clk 0:00:52]}  Rae8 {[%clk 0:00:29]} 25. Rxe4 {[%clk 0:00:52]}  Rxe4 {[%clk 0:00:30]} 26. d6 {[%clk 0:00:47]}  Rd4 {[%clk 0:00:14]} 27. Qc1 {[%clk 0:00:44]}  Qc6 {[%clk 0:00:12]} 28. h4 {[%clk 0:00:09]}  Qxc1 {[%clk 0:00:06]} 29. Rxc1 {[%clk 0:00:09]}  f4 {[%clk 0:00:07]} 30. Bh2 {[%clk 0:00:09]}  Be5 {[%clk 0:00:05]} 31. Rc8+ {[%clk 0:00:08]}  Kf7 {[%clk 0:00:05]} 32. Rc1 {[%clk 0:00:09]}  Rxd6 {[%clk 0:00:05]} 33. Kf1 {[%clk 0:00:09]}  Rd2 {[%clk 0:00:05]} 34. Re1 {[%clk 0:00:10]}  Bd4 {[%clk 0:00:05]} 35. Bg1 {[%clk 0:00:09]}  Rxa2 {[%clk 0:00:04]} 36. Rd1 {[%clk 0:00:09]}  Bb6 {[%clk 0:00:03]} 37. Rc1 {[%clk 0:00:09]}  f3 {[%clk 0:00:03]} 38. gxf3 {[%clk 0:00:09]}  gxf3 {[%clk 0:00:04]} 39. Rd1 {[%clk 0:00:09]}  Rb2 {[%clk 0:00:05]} 40. b4 {[%clk 0:00:09]}  Rxb4 {[%clk 0:00:05]} 41. Bh2 {[%clk 0:00:10]}  Rb2 {[%clk 0:00:06]} 42. Bg3 {[%clk 0:00:10]}  a5 {[%clk 0:00:06]} 43. Ke1 {[%clk 0:00:09]}  a4 {[%clk 0:00:07]} 44. Rd3 {[%clk 0:00:10]}  a3 {[%clk 0:00:07]} 45. Rxf3+ {[%clk 0:00:10]}  Ke6 {[%clk 0:00:07]} 46. Rxa3 {[%clk 0:00:10]}  Rb1+ {[%clk 0:00:08]} 47. Ke2 {[%clk 0:00:11]}  Rb2+ {[%clk 0:00:09]} 48. Kf3 {[%clk 0:00:11]}  Bc5 {[%clk 0:00:09]} 49. Ra8 {[%clk 0:00:11]}  b5 {[%clk 0:00:09]} 50. Rc8 {[%clk 0:00:11]}  Kd5 {[%clk 0:00:10]} 51. Rc7 {[%clk 0:00:10]}  Rb3+ {[%clk 0:00:10]} 52. Kg4 {[%clk 0:00:10]}  b4 {[%clk 0:00:10]} 53. Rxh7 {[%clk 0:00:10]}  Rd3 {[%clk 0:00:11]} 54. Rd7+ {[%clk 0:00:08]}  Kc4 {[%clk 0:00:11]} 55. Rb7 {[%clk 0:00:04]}  b3 {[%clk 0:00:12]} 56. h5 {[%clk 0:00:04]}  Bb4 {[%clk 0:00:11]} 57. Be5 {[%clk 0:00:04]}  Bc3 {[%clk 0:00:11]} 58. Rc7+ {[%clk 0:00:03]}  Kb4 {[%clk 0:00:11]} 59. Bxc3+ {[%clk 0:00:03]}  Rxc3 {[%clk 0:00:12]} 60. Rb7+ {[%clk 0:00:01]}  Ka3 {[%clk 0:00:12]} 61. h6 {[%clk 0:00:02]}  b2 {[%clk 0:00:11]} 62. h7 {[%clk 0:00:02]}  Rc4+ {[%clk 0:00:11]} 63. Kg5 {[%clk 0:00:02]}  Rb4 {[%clk 0:00:12]} 64. Rxb4 {[%clk 0:00:02]}  Kxb4 {[%clk 0:00:12]} 65. h8=Q {[%clk 0:00:03]}  b1=Q {[%clk 0:00:13]} 66. Qb8+ {[%clk 0:00:03]}  Kc3 {[%clk 0:00:13]} 67. Qxb1 {[%clk 0:00:04]}  Kd2 {[%clk 0:00:14]} 68. Qe4 {[%clk 0:00:04]}  Kc3 {[%clk 0:00:15]} 69. f4 {[%clk 0:00:05]}  Kb2 {[%clk 0:00:16]} 70. f5 {[%clk 0:00:06]}  Kc3 {[%clk 0:00:16]} 71. f6 {[%clk 0:00:07]}  Kb2 {[%clk 0:00:17]} 72. f7 {[%clk 0:00:08]}  Kc3 {[%clk 0:00:18]} 73. Qf3+ {[%clk 0:00:08]}  Kb2 {[%clk 0:00:19]} 74. Qe2+ {[%clk 0:00:09]}  Kc3 {[%clk 0:00:20]} 75. f8=Q {[%clk 0:00:09]}  Kd4 {[%clk 0:00:21]} 76. Qd6+ {[%clk 0:00:09]}  Kc3 {[%clk 0:00:20]} 77. Qed3+ {[%clk 0:00:09]}  Kb2 {[%clk 0:00:20]} 78. Q6a3# {[%clk 0:00:09]} 1-0


[Site "https://www.chess.com"]

[Event "Titled Tuesday Blitz March 28 Early 2023"]
[White "Tregubov, Pavel V."]
[Black "Fernandez Siles, Luis"]
[WhiteFideId "4115341"]
[BlackFideId "2209420"]
[WhiteElo "2425"]
[BlackElo "2186"]
[Result "1-0"]
[Round "01"]
[TimeControl "180+2"]
[Date "2023.03.28"]
[WhiteClock "0:00:06"]
[BlackClock "0:00:05"]

1. e4 {[%clk 0:02:56]}  c5 {[%clk 0:02:59]} 2. Nf3 {[%clk 0:02:56]}  Nc6 {[%clk 0:02:59]} 3. Bb5 {[%clk 0:02:55]}  g6 {[%clk 0:02:58]} 4. O-O {[%clk 0:02:54]}  Bg7 {[%clk 0:02:58]} 5. c3 {[%clk 0:02:54]}  Nf6 {[%clk 0:02:58]} 6. Re1 {[%clk 0:02:54]}  O-O {[%clk 0:02:58]} 7. h3 {[%clk 0:02:52]}  e5 {[%clk 0:02:49]} 8. d4 {[%clk 0:02:50]}  exd4 {[%clk 0:02:36]} 9. cxd4 {[%clk 0:02:50]}  cxd4 {[%clk 0:02:27]} 10. e5 {[%clk 0:02:38]}  Nd5 {[%clk 0:02:25]} 11. Bg5 {[%clk 0:02:34]}  Qb6 {[%clk 0:02:23]} 12. Na3 {[%clk 0:02:28]}  Re8 {[%clk 0:02:02]} 13. Nc4 {[%clk 0:02:12]}  Qxb5 {[%clk 0:01:24]} 14. Nd6 {[%clk 0:02:12]}  Qxb2 {[%clk 0:01:23]} 15. Nxe8 {[%clk 0:02:12]}  Nc3 {[%clk 0:01:19]} 16. Qd3 {[%clk 0:01:27]}  Nxe5 {[%clk 0:00:30]} 17. Nf6+ {[%clk 0:00:45]}  Bxf6 {[%clk 0:00:20]} 18. Bxf6 {[%clk 0:00:46]}  d6 {[%clk 0:00:17]} 19. Qxd4 {[%clk 0:00:34]}  Nxf3+ {[%clk 0:00:16]} 20. gxf3 {[%clk 0:00:33]}  Ne2+ {[%clk 0:00:16]} 21. Rxe2 {[%clk 0:00:25]}  Qxe2 {[%clk 0:00:17]} 22. Bh8 {[%clk 0:00:22]}  Kf8 {[%clk 0:00:17]} 23. Qg7+ {[%clk 0:00:17]}  Ke7 {[%clk 0:00:17]} 24. Qc3 {[%clk 0:00:18]}  Be6 {[%clk 0:00:15]} 25. Re1 {[%clk 0:00:18]}  Qb5 {[%clk 0:00:14]} 26. Bf6+ {[%clk 0:00:16]}  Kd7 {[%clk 0:00:14]} 27. Bh4 {[%clk 0:00:16]}  Rc8 {[%clk 0:00:14]} 28. Qf6 {[%clk 0:00:16]}  Rc4 {[%clk 0:00:13]} 29. Kg2 {[%clk 0:00:15]}  Qh5 {[%clk 0:00:11]} 30. Qe7+ {[%clk 0:00:12]}  Kc6 {[%clk 0:00:10]} 31. Bg3 {[%clk 0:00:10]}  Qxh3+ {[%clk 0:00:08]} 32. Kg1 {[%clk 0:00:11]}  Bd5 {[%clk 0:00:09]} 33. Qe8+ {[%clk 0:00:09]}  Kb6 {[%clk 0:00:07]} 34. Rb1+ {[%clk 0:00:08]}  Kc5 {[%clk 0:00:07]} 35. Qb5+ {[%clk 0:00:08]}  Kd4 {[%clk 0:00:07]} 36. Qb2+ {[%clk 0:00:08]}  Kc5 {[%clk 0:00:07]} 37. Qb5+ {[%clk 0:00:08]}  Kd4 {[%clk 0:00:07]} 38. Rd1+ {[%clk 0:00:08]}  Kc3 {[%clk 0:00:07]} 39. Qxd5 {[%clk 0:00:08]}  Rh4 {[%clk 0:00:05]} 40. Qb3# {[%clk 0:00:06]} 1-0


[Site "https://www.chess.com"]

[Event "Titled Tuesday Blitz March 28 Early 2023"]
[White "Fathy, Elameir"]
[Black "Kucuksari, Kaan"]
[WhiteFideId "10600396"]
[BlackFideId "6380166"]
[WhiteElo "2311"]
[BlackElo "2364"]
[Result "0-1"]
[Round "01"]
[TimeControl "180+2"]
[Date "2023.03.28"]
[WhiteClock "0:00:06"]
[BlackClock "0:00:53"]

1. d4 {[%clk 0:02:43]}  f5 {[%clk 0:02:56]} 2. c4 {[%clk 0:02:43]}  Nf6 {[%clk 0:02:56]} 3. Nf3 {[%clk 0:02:44]}  e6 {[%clk 0:02:56]} 4. a3 {[%clk 0:02:43]}  Be7 {[%clk 0:02:55]} 5. Nc3 {[%clk 0:02:43]}  O-O {[%clk 0:02:55]} 6. Qc2 {[%clk 0:02:44]}  b6 {[%clk 0:02:54]} 7. e4 {[%clk 0:02:43]}  fxe4 {[%clk 0:02:54]} 8. Nxe4 {[%clk 0:02:44]}  Bb7 {[%clk 0:02:54]} 9. Bd3 {[%clk 0:02:45]}  Nxe4 {[%clk 0:02:53]} 10. Bxe4 {[%clk 0:02:45]}  Bxe4 {[%clk 0:02:54]} 11. Qxe4 {[%clk 0:02:46]}  Nc6 {[%clk 0:02:53]} 12. O-O {[%clk 0:02:44]}  Bf6 {[%clk 0:02:53]} 13. Bf4 {[%clk 0:02:25]}  Na5 {[%clk 0:02:43]} 14. Rac1 {[%clk 0:02:11]}  Qe7 {[%clk 0:02:18]} 15. Nd2 {[%clk 0:01:32]}  Nc6 {[%clk 0:02:14]} 16. Nf3 {[%clk 0:01:27]}  Na5 {[%clk 0:02:12]} 17. Nd2 {[%clk 0:01:26]}  c5 {[%clk 0:02:08]} 18. dxc5 {[%clk 0:01:12]}  bxc5 {[%clk 0:02:09]} 19. Rc2 {[%clk 0:01:02]}  Nc6 {[%clk 0:02:08]} 20. Nf3 {[%clk 0:00:58]}  Nd4 {[%clk 0:02:04]} 21. Nxd4 {[%clk 0:00:52]}  Bxd4 {[%clk 0:02:04]} 22. Be3 {[%clk 0:00:52]}  Bxe3 {[%clk 0:02:03]} 23. Qxe3 {[%clk 0:00:52]}  Rab8 {[%clk 0:01:58]} 24. Rd1 {[%clk 0:00:52]}  Rb7 {[%clk 0:01:56]} 25. h3 {[%clk 0:00:47]}  d6 {[%clk 0:01:52]} 26. Rcd2 {[%clk 0:00:46]}  Rb6 {[%clk 0:01:51]} 27. b3 {[%clk 0:00:44]}  e5 {[%clk 0:01:50]} 28. Rd3 {[%clk 0:00:38]}  Rf4 {[%clk 0:01:49]} 29. b4 {[%clk 0:00:23]}  Rxc4 {[%clk 0:01:47]} 30. bxc5 {[%clk 0:00:18]}  Rxc5 {[%clk 0:01:48]} 31. Qxc5 {[%clk 0:00:08]}  dxc5 {[%clk 0:01:47]} 32. Rd8+ {[%clk 0:00:09]}  Kf7 {[%clk 0:01:46]} 33. R1d7 {[%clk 0:00:10]}  Rc6 {[%clk 0:01:41]} 34. Rxe7+ {[%clk 0:00:10]}  Kxe7 {[%clk 0:01:42]} 35. Ra8 {[%clk 0:00:10]}  Rc7 {[%clk 0:01:42]} 36. Kf1 {[%clk 0:00:10]}  Kd6 {[%clk 0:01:33]} 37. Ke1 {[%clk 0:00:10]}  Kd5 {[%clk 0:01:33]} 38. Kd2 {[%clk 0:00:11]}  Kc4 {[%clk 0:01:33]} 39. Re8 {[%clk 0:00:08]}  Kb3 {[%clk 0:01:32]} 40. Kc1 {[%clk 0:00:06]}  Kxa3 {[%clk 0:01:26]} 41. Rxe5 {[%clk 0:00:06]}  c4 {[%clk 0:01:19]} 42. Kc2 {[%clk 0:00:07]}  Kb4 {[%clk 0:01:20]} 43. f4 {[%clk 0:00:06]}  a5 {[%clk 0:01:17]} 44. f5 {[%clk 0:00:07]}  Rd7 {[%clk 0:01:17]} 45. g4 {[%clk 0:00:07]}  a4 {[%clk 0:01:16]} 46. Re6 {[%clk 0:00:07]}  a3 {[%clk 0:01:16]} 47. Rb6+ {[%clk 0:00:07]}  Ka5 {[%clk 0:01:14]} 48. Rb8 {[%clk 0:00:07]}  Ra7 {[%clk 0:01:12]} 49. Kb1 {[%clk 0:00:07]}  c3 {[%clk 0:00:59]} 50. Rc8 {[%clk 0:00:07]}  Kb4 {[%clk 0:00:56]} 51. Ka2 {[%clk 0:00:05]}  Re7 {[%clk 0:00:55]} 52. Rb8+ {[%clk 0:00:05]}  Kc4 {[%clk 0:00:53]} 53. Kxa3 {[%clk 0:00:06]}  Ra7# {[%clk 0:00:53]} 0-1


[Site "https://www.chess.com"]

[Event "Titled Tuesday Blitz March 28 Early 2023"]
[White "Cuenca Jimenez, Jose Fernando"]
[Black "crosky"]
[WhiteFideId "2255570"]
[WhiteElo "2429"]
[BlackElo "2341"]
[Result "1-0"]
[Round "01"]
[TimeControl "180+2"]
[Date "2023.03.28"]
[WhiteClock "0:01:37"]
[BlackClock "0:00:44"]

1. c4 {[%clk 0:03:00]}  Nf6 {[%clk 0:02:59]} 2. Nc3 {[%clk 0:02:57]}  e6 {[%clk 0:03:00]} 3. d4 {[%clk 0:02:56]}  Bb4 {[%clk 0:02:59]} 4. Qc2 {[%clk 0:02:56]}  O-O {[%clk 0:02:58]} 5. Nf3 {[%clk 0:02:56]}  d6 {[%clk 0:02:55]} 6. Bd2 {[%clk 0:02:54]}  Re8 {[%clk 0:02:49]} 7. a3 {[%clk 0:02:54]}  Bxc3 {[%clk 0:02:48]} 8. Bxc3 {[%clk 0:02:55]}  Nc6 {[%clk 0:02:42]} 9. Rd1 {[%clk 0:02:49]}  Bd7 {[%clk 0:01:16]} 10. e4 {[%clk 0:02:16]}  e5 {[%clk 0:01:15]} 11. d5 {[%clk 0:02:16]}  Nd4 {[%clk 0:01:12]} 12. Nxd4 {[%clk 0:02:08]}  exd4 {[%clk 0:01:12]} 13. Rxd4 {[%clk 0:02:09]}  c5 {[%clk 0:00:54]} 14. dxc6 {[%clk 0:02:07]}  Bxc6 {[%clk 0:00:55]} 15. f3 {[%clk 0:01:47]}  d5 {[%clk 0:00:54]} 16. Be2 {[%clk 0:01:39]}  Qc7 {[%clk 0:00:44]} 17. cxd5 {[%clk 0:01:37]} 1-0


[Site "https://www.chess.com"]

[Event "Titled Tuesday Blitz March 28 Early 2023"]
[White "Ovezdurdyyeva, Jemal"]
[Black "Papasimakopoulos, Alexandros"]
[WhiteFideId "14001888"]
[BlackFideId "4244125"]
[WhiteElo "2043"]
[BlackElo "2359"]
[Result "0-1"]
[Round "01"]
[TimeControl "180+2"]
[Date "2023.03.28"]
[WhiteClock "0:01:08"]
[BlackClock "0:00:57"]

1. e4 {[%clk 0:03:00]}  e6 {[%clk 0:02:54]} 2. d4 {[%clk 0:03:00]}  d5 {[%clk 0:02:54]} 3. Nd2 {[%clk 0:03:00]}  Nf6 {[%clk 0:02:54]} 4. e5 {[%clk 0:03:00]}  Nfd7 {[%clk 0:02:55]} 5. Ngf3 {[%clk 0:03:00]}  c5 {[%clk 0:02:55]} 6. c3 {[%clk 0:03:00]}  Nc6 {[%clk 0:02:56]} 7. Be2 {[%clk 0:03:00]}  f6 {[%clk 0:02:53]} 8. exf6 {[%clk 0:02:59]}  Nxf6 {[%clk 0:02:53]} 9. O-O {[%clk 0:02:59]}  Bd6 {[%clk 0:02:54]} 10. Bd3 {[%clk 0:02:44]}  O-O {[%clk 0:02:51]} 11. Re1 {[%clk 0:02:43]}  Qc7 {[%clk 0:02:45]} 12. h3 {[%clk 0:02:42]}  e5 {[%clk 0:02:44]} 13. dxe5 {[%clk 0:02:40]}  Nxe5 {[%clk 0:02:45]} 14. Nxe5 {[%clk 0:02:40]}  Bxe5 {[%clk 0:02:46]} 15. Nf3 {[%clk 0:02:41]}  Bd6 {[%clk 0:02:34]} 16. Bg5 {[%clk 0:02:39]}  Bd7 {[%clk 0:02:32]} 17. Bc2 {[%clk 0:02:39]}  Bc6 {[%clk 0:02:22]} 18. Qd3 {[%clk 0:02:39]}  g6 {[%clk 0:01:44]} 19. Re6 {[%clk 0:02:29]}  Ne4 {[%clk 0:01:39]} 20. Bh6 {[%clk 0:02:24]}  Rae8 {[%clk 0:01:34]} 21. Ng5 {[%clk 0:01:56]}  Nxg5 {[%clk 0:01:17]} 22. Rxe8 {[%clk 0:01:54]}  Nxh3+ {[%clk 0:01:06]} 23. Qxh3 {[%clk 0:01:53]}  Rxe8 {[%clk 0:01:02]} 24. Qg4 {[%clk 0:01:47]}  Qe7 {[%clk 0:01:01]} 25. Kf1 {[%clk 0:01:08]}  Bb5+ {[%clk 0:00:57]} 0-1


[Site "https://www.chess.com"]